Cogmind - Beta 16.1 @@@ ROGUE MODE // 2026.03.08 @ 16:12:51 Player: VLAM Result: Destroyed by G-34 Mercenary with Small Laser Performance ------------- Evolutions (0) 0 Regions Visited (1) 200 Robots Destroyed (4) 20 Value Destroyed (56) 56 Prototype IDs (0) 0 Alien Tech Used (0) 0 Bonus (0) 0 TOTAL SCORE: 276 Bonus ------- None Cogmind --------- Core Integrity 0/250 Matter 289/300 Energy 60/100 System Corruption 0% Temperature Warm (139) Movement Core (50) Location -10/Materials Parts ------- > --- POWER (1) -------- (None) > --- PROPULSION (2) --- (None) > --- UTILITY (2) ------ (None) > --- WEAPON (2) ------- Light Assault Rifle > --- INVENTORY (5) ---- Wheel Peak State ------------ > --- POWER ------------ (None) > --- PROPULSION ------- Wheel Wheel > --- UTILITY ---------- (None) > --- WEAPON ----------- EM Pulse Gun Medium Laser > --- INVENTORY -------- (None) [Rating: 4] Favorites ----------- Power None Propulsion Wheel Wheel Wheel Utility None Weapon Medium Laser Energy Gun Medium Laser Ballistic Gun Light Assault Rifle Build | -11 -10 ------- Run | Yrd Mat Slots Evolved . | . . Power . | . . Propulsion . | . . Utility . | . . Weapon . | . . Parts Attached 5 | 4 1 Power . | . . Engine . | . . Core . | . . Reactor . | . . Propulsion 2 | 2 . Treads . | . . Leg . | . . Wheel 2 | 2 . Hover . | . . Flight . | . . Utility . | . . Device . | . . Storage . | . . Processor . | . . Hackware . | . . Protection . | . . Artifact . | . . Weapon 3 | 2 1 Energy Gun 2 | 2 . Energy Cannon . | . . Ballistic Gun 1 | . 1 Ballistic Cannon . | . . Launcher . | . . Special Weapon . | . . Impact Weapon . | . . Slashing Weapon . | . . Piercing Weapon . | . . Special Melee Weapon . | . . Unidentified Prototypes . | . . Parts Lost 4 | . 4 Power . | . . Propulsion 2 | . 2 Utility . | . . Weapon 2 | . 2 Highest Loss Streak 4 | . 4 To Critical Strikes . | . . Average Backups . | . . Power . | . . Propulsion . | . . Utility . | . . Weapon . | . . Tool/Special . | . . Unused Backups 1 | . 1 Power . | . . Propulsion 1 | . 1 Utility . | . . Weapon . | . . Tool/Special . | . . Average Slot Usage (%) 44 | . 44 Wheel 20 | . 20 Energy Gun 21 | . 21 Ballistic Gun 1 | . 1 Peak Build Rating 4 | 4 4 Average Rating 2 | 2 3 On Entrance 2 | . 4 Avg Prop Armor Cover (%) . | . . Naked Turns 3 | . 3 Heaviest Build 4 | 4 4 Greatest Support 20 | 20 20 Greatest Overweight (x) . | . . Average Overweight (x) . | . . Largest Inventory Capacity 5 | 5 5 Average Capacity 5 | 5 5 Most Carried 1 | . 1 Average Carried . | . . Final Capacity 5 | 5 5 Final Carried 1 | . 1 Class Distribution -------------------- 100% | Mutant Dominant Class ---------------- Mutant | -10/Materials Resources | -11 -10 ----------- Run | Yrd Mat Matter Collected 222 | 202 20 Remotely . | . . Salvage Created 68 | . 68 Parts 5 | . 5 Haulers Intercepted . | . . Recyclers Shooed 1 | . 1 Parts Field Recycled . | . . Retrieved Matter . | . . Parts Self-Destructed . | . . Prevented . | . . Parts Restored . | . . Kills | -11 -10 ------- Run | Yrd Mat Combat Hostiles Destroyed 3 | . 3 Guns 3 | . 3 Classes Destroyed 2 | . 2 Watcher 1 | . 1 Swarmer 3 | . 3 Best Kill Streak 4 | . 4 Combat Bots Only 3 | . 3 Max Kills in Single Turn 1 | . 1 Gunslinging . | . . Exploded . | . . Melee . | . . Uniques/NPCs Destroyed . | . . Combat | -11 -10 -------- Run | Yrd Mat Hostile Shots Fired 62 | . 62 Missed 11 | . 11 Hits 51 | . 51 Projectile 51 | . 51 Damage Taken 507 | . 507 Core 258 | . 258 Absorbed by Shields . | . . Core Remaining (%) 100 | 100 . Volleys Fired 18 | . 18 Largest 2 | . 2 Hottest 90 | . 90 Shots Fired 23 | . 23 Gun 23 | . 23 Cannon . | . . Launcher . | . . Special . | . . Kinetic 1 | . 1 Thermal 17 | . 17 Explosive . | . . Electromagnetic 5 | . 5 Robot Hit Streak 7 | . 7 Robot Miss Streak 4 | . 4 Penetration Max . | . . Secondary Targets . | . . Shots Hit Robots 12 | . 12 Core Hits 6 | . 6 Critical Kills . | . . Critical Parts Destroyed . | . . Critical Strikes 1 | . 1 Burn 1 | . 1 Melee Attacks . | . . Impact . | . . Slashing . | . . Piercing . | . . Sneak Attacks . | . . Combat Hostiles . | . . Follow-up Attacks . | . . Damage Inflicted 170 | . 170 Guns 170 | . 170 Cannons . | . . Explosions . | . . Melee . | . . Ramming . | . . Kinetic . | . . Thermal 149 | . 149 Explosive . | . . Electromagnetic 21 | . 21 Impact . | . . Slashing . | . . Piercing . | . . Highest Corruption . | . . Average Corruption . | . . Corruption Purged . | . . Corruption Blocked . | . . Overload Shots . | . . Overflow Damage . | . . Projectiles . | . . Explosions . | . . Melee . | . . Knockbacks . | . . Impact . | . . Kinetic . | . . Secondary . | . . Self-Inflicted Damage . | . . Shots . | . . Rammed 1 | 1 . Targets Rammed 1 | 1 . Kicked . | . . Crushed . | . . Highest Temperature 165 | . 165 Average Temperature 74 | . 74 Received Heat Transfer 174 | . 174 Siege Activations . | . . Martial Activations . | . . Shielding Activations . | . . Robots Disrupted . | . . Combat Hostiles . | . . Robots Corrupted . | . . Combat Hostiles . | . . Parts Fried . | . . Impact Corruptions . | . . Robots Melted . | . . Combat Hostiles . | . . Parts Melted 2 | . 2 Heat Transferred 518 | . 518 Parts Sabotaged . | . . Parts Stolen . | . . Parts Stripped . | . . Power Chain Reactions . | . . Alert | -11 -10 ------- Run | Yrd Mat Maximum Alert Level . | . . Low Security (%) 100 | 100 100 Level 1 . | . . Level 2 . | . . Level 3 . | . . Level 4 . | . . Level 5 . | . . High Security . | . . Max Security . | . . Peak Influence 52 | . 52 Initial . | . . Average 14 | . 21 Influence Increases 92 | . 92 Destroy 0b10 Robot/C 60 | . 60 Destroy 0b10 Robot/NC 5 | . 5 Destroy Leader 12 | . 12 Disable Machine 15 | . 15 Influence Decreases 70 | . 70 Time Decay 30 | . 30 Lost Part 40 | . 40 Squads Dispatched 2 | . 2 Investigation 1 | . 1 Extermination . | . . Reinforcement 1 | . 1 Assault . | . . Garrison . | . . Intercept . | . . Searches Triggered . | . . Construction Impeded . | . . Haulers Reinforced . | . . Active Scanning Responses . | . . Cargo Convoy Interrupts . | . . Stealth | -11 -10 --------- Run | Yrd Mat Distress Signals 3 | . 3 Communications Jammed . | . . Distress Signals . | . . Times Spotted 12 | . 12 Peak Tracking Total 7 | . 7 Tactical Retreats . | . . Traps | -11 -10 ------- Run | Yrd Mat Traps Triggered . | . . Indirectly . | . . Trap Hack Attempts . | . . Triggered . | . . Disarmed . | . . Reprogrammed . | . . Reused . | . . Traps Extracted . | . . Installed . | . . Triggered . | . . Machines | -11 -10 ---------- Run | Yrd Mat Machines Disabled 1 | . 1 Max in Single Turn 1 | . 1 Machines Repaired . | . . Machines Dismantled . | . . Machines Sabotaged . | . . Overloaded Fab Kills . | . . Hacking | -11 -10 --------- Run | Yrd Mat Machines Accessed 1 | . 1 Terminals 1 | . 1 Fabricators . | . . Repair Stations . | . . Recycling Units . | . . Scanalyzers . | . . Garrison Access . | . . Total Hacks 4 | . 4 Successful . | . . Failed 4 | . 4 Catastrophic 1 | . 1 Database Lockouts . | . . Manual . | . . Terminals 4 | . 4 Fabricators . | . . Repair Stations . | . . Recycling Units . | . . Scanalyzers . | . . Garrison Access . | . . Terminal Hacks . | . . Fabricator Hacks . | . . Repair Station Hacks . | . . Recycling Unit Hacks . | . . Scanalyzer . | . . Garrison Access Hacks . | . . Unauthorized Hacks . | . . Terminals . | . . Fabricators . | . . Repair Stations . | . . Recycling Units . | . . Scanalyzers . | . . Garrison Access . | . . Data Cores Recovered . | . . Used . | . . Hacking Detections 1 | . 1 Full Trace Events 1 | . 1 Feedback Events . | . . Feedback Blocked . | . . Robot Schematics Acquired . | . . Robots Built . | . . Authchips . | . . Time . | . . Total Robot Build Rating . | . . Part Schematics Acquired . | . . Parts Built . | . . Authchips . | . . Time . | . . Total Part Build Rating . | . . Part Studies Acquired . | . . Parts Repaired . | . . Time . | . . Parts Recycled . | . . Recycled Matter . | . . Retrieved Matter . | . . Retrieved Components . | . . Parts Scanalyzed . | . . Part Schematics Acquired . | . . Parts Damaged . | . . Bothacking | -11 -10 ------------ Run | Yrd Mat Used RIF Installer . | . . Robots Hacked . | . . Non-combat . | . . Combat . | . . Robot Hacks Applied . | . . Relay Couplers Released . | . . Fabnet Peak Effective % . | . . Robots Rewired . | . . Allies Hacked . | . . Hacks Repelled . | . . Allies | -11 -10 -------- Run | Yrd Mat Total Allies . | . . Largest Group . | . . Highest-Rated Group . | . . Highest-Rated Ally . | . . Total Orders . | . . Ally Attacks . | . . Total Damage . | . . Kills . | . . Allies Corrupted . | . . Allies Melted . | . . Intel | -11 -10 ------- Run | Yrd Mat Active Infowar (turns) . | . . Robot Analysis Total . | . . Derelict Logs Recovered . | . . Drone Launches . | . . Drone Recoveries . | . . Exploration | -11 -10 ------------- Run | Yrd Mat Turns Passed 119 | 39 80 Spaces Moved 85 | 42 43 Core 7 | 4 3 Treads . | . . Legs . | . . Wheels 78 | 38 40 Hover . | . . Flight . | . . Fastest Speed 50 | 50 50 Average Speed 77 | 77 77 Slowest Speed 80 | 80 80 Overloaded Moves . | . . Propulsion Burnouts . | . . Robots Hopped . | . . Potential Cave-ins . | . . Cave-ins Triggered . | . . Exploration Rate (%) 6 | 3 9 Regions Visited 1 Branch Regions . Pre-discovered Areas . | . . Known Exits Taken . | . . Unknown Exits Taken 1 | 1 . Scrap Searched . | . . Spaces Dug . | . . Terrain Destroyed . | . . Melee . | . . Projectile . | . . AOE . | . . Terrain Rammed . | . . Walls Destroyed . | . . Machines Disabled . | . . Actions | -11 -10 --------- Run | Yrd Mat Total 113 | 46 67 Wait 4 | . 4 Move 84 | 41 43 Hop . | . . Pick Up 1 | . 1 Fast Attach 5 | 4 1 Attach . | . . Detach . | . . Swap . | . . Drop . | . . Fire 18 | . 18 Melee . | . . Ram 1 | 1 . Kick . | . . Crush . | . . Escape Stasis . | . . Rewire . | . . Trap . | . . Miscellaneous . | . . Route ------- -11/Scrapyard -10/Materials History --------- Turn | Location | Event 12 | -11/Scrapyard | Discovered new exit (range 15) 40 | -11/Scrapyard | Entered Materials 102 | -10/Materials | Core integrity fell below 50% 117 | -10/Materials | Core integrity fell below 20% 120 | -10/Materials | Destroyed by G-34 Mercenary with Small Laser Last Messages --------------- 00074_ ALERT: Suspicious activity at Terminal M007. Dispatching Investigation squad. 00078_ S-10 Pest destroyed. 00090_ EM Pulse Gun destroyed. 00092_ Acquired 20 matter. 00092_ W-16 Scout sends out distress signal. 00094_ R-06 Scavenger collects Lgt. Assault Rifle. 00094_ Flight Unit melted. 00094_ S-10 Pest destroyed. 00098_ R-06 Scavenger collects Corrupted Lgt. Ion Engine. 00099_ Wheel destroyed. 00100_ Hover Unit melted. 00100_ W-16 Scout destroyed. 00101_ R-06 Scavenger collects Flight Unit. 00102_ S-10 Pest destroyed. 00109_ Wheel destroyed. 00110_ G-34 Mercenary suffers critical hit (Burn). 00114_ G-34 Mercenary destroyed. 00115_ Med. Laser destroyed. 00118_ Acquired Lgt. Assault Rifle. Map ----- +----------------------------------------------------+ | ?????????????????????????????????????????????????? | | ?????????????????????????????????????????????????? | | ?????????????????????????????????????????????????? | | ?????????????????????????????????????????????????? | | ?????????????????????????????????????????????????? | | ?????????????????????????????????????????????????? | | ?????????????????????????????????????????????????? | | ?????????????????????????????????????????????????? | | ?????????????????????????????????????????????????? | | ?????????????????????????????????????????????????? | | ?????????????????????? ??????????????????????? | | ?????????????????????? ??????????????????????? | | ?????????????????????? ??????????????????????? | | ?????????????????????? ??????????????????????? | | ?????????????????????? ??????????????????????? | | ??????????????????????# #??????????????????????? | | ??????????????????????#gg #??????????????????????? | | ??????????????????????# g #??????????????????????? | | ??????????????????????# #??????????????????????? | | ??????????????????????# g #??????????????????????? | | ??????????????????????# #??????????????????????? | | ?????????????????????## ##?????????????????????? | | ?????????????????????# g #?????????????????????? | | ?????????????????????# =%g=#?????????????????????? | | ?????????????????????# #?????????????????????? | | ?????????????????????# %@ #?????????????????????? | | ?????????????????????# % #?????????????????????? | | ?????????????????????## ###????????????????????? | | ??????????????????????# T#????????????????????? | | ????????????########### ""#????????????????????? | | ????????????# | # ###????????????????????? | | ????????????# """ # ######?????????????????? | | ????????????# """ # #?????????????????? | | ????????????# """ + #?????????????????? | | ????????????# """ # #?????????????????? | | ????????????# " " " " # #?????????????????? | | ????????????# "T" # #?????????????????? | | ????????????# """ | ! # #?????????????????? | | ????????????########### #?????????????????? | | ??????????????????????# #?????????????????? | | ??????????????????????###### #?????????????????? | | ???????????????????????????# #?????????????????? | | ???????????????????????????#####?????????????????? | | ?????????????????????????????????????????????????? | | ?????????????????????????????????????????????????? | | ?????????????????????????????????????????????????? | | ?????????????????????????????????????????????????? | | ?????????????????????????????????????????????????? | | | | | +----------------------------------------------------+ Best States ------------- Heat Dissipation 25 Energy Generation 5 Energy Capacity 100 Matter Stores 300 Matter Capacity 300 Sight Range 16 Terrain Scan Density 10 Evasion (%) 44 Item Schematics ----------------- None Robot Schematics ------------------ None Fabricated ------------ Nothing Repaired ---------- Nothing Studied --------- None Alien Tech Used ----------------- None Achievements -------------- None Challenges ------------ None Game ------ Seed ReflectiveScatterDoomcannon Manual? 0 Play Time 00:02:49 Cumulative 24.4 hours Start 2026.03.08 @ 16:10:51 End 2026.03.08 @ 16:12:51 Sessions 1 Manual Loads 0 Difficulty Rogue Special Mode None Game No. 39 Rogue 39 Adventurer 0 Explorer 0 Win Type - Total 0 Types 0/0/0/0/0/0/0/0/0/0 Lore% 7 Gallery% 22 Achievement% 17 Wizard Run 0 Options --------- Layout 0 ASCII 0 Keyboard 1 Movement Numpad Keybinds 0 Fullscreen 2 Font 24/Smallcaps Map View 76x50 Zoom Use 0% Tactical HUD 1 Map Filters NONE Filters NONE Steam 1 RUN: a8154903-737d-46a8-b1f5-ee1909797f95